fUST/lending_fUST_20240810
["ID","MTS","AMOUNT","RATE_DAILY","PERIOD"]
[334586931,1723283440294,-540.0,0.00019799,2]
[334586932,1723283440303,-285.0,0.00019799,2]
[334586933,1723283440313,-285.0,0.00019799,2]
[334586934,1723283440323,-285.0,0.00019799,2]
[334586935,1723283440332,-285.0,0.00019799,2]
[334586936,1723283440341,-285.0,0.00019799,2]
[334586937,1723283440354,-285.0,0.00019799,2]
[334586938,1723283440363,-285.0,0.00019799,2]
[334586939,1723283440373,-285.0,0.00019799,2]
[334586940,1723283440382,-285.0,0.00019799,2]
[334586941,1723283440391,-285.0,0.00019799,2]
[334586942,1723283440400,-285.0,0.00019799,2]
[334586943,1723283440410,-285.0,0.00019799,2]
[334586944,1723283440419,-285.0,0.00019799,2]
[334586945,1723283440428,-285.0,0.00019799,2]
[334586946,1723283440438,-285.0,0.00019799,2]
[334586947,1723283440448,-540.0,0.00019799,2]
[334586948,1723283440458,-540.0,0.00019799,2]
[334586949,1723283440467,-540.0,0.00019799,2]
[334586950,1723283440476,-540.0,0.00019799,2]
[334586951,1723283440493,-540.0,0.00019799,2]
[334586952,1723283440502,-540.0,0.00019799,2]
[334586953,1723283440510,-540.0,0.00019799,2]
[334586954,1723283440520,-540.0,0.00019799,2]
[334586955,1723283440529,-540.0,0.00019799,2]
[334586956,1723283440538,-540.0,0.00019799,2]
[334586957,1723283440548,-540.0,0.00019799,2]
[334586958,1723283440558,-540.0,0.00019799,2]
[334586959,1723283440568,-540.0,0.00019799,2]
[334586960,1723283440578,-540.0,0.00019799,2]
[334586961,1723283440587,-540.0,0.00019799,2]
[334586962,1723283440597,-540.0,0.00019799,2]
[334586963,1723283440607,-540.0,0.00019799,2]
[334586964,1723283440617,-285.0,0.00019799,2]
[334586965,1723283440626,-285.0,0.00019799,2]
[334586966,1723283440636,-285.0,0.00019799,2]
[334586967,1723283440645,-285.0,0.00019799,2]
[334586968,1723283440654,-285.0,0.00019799,2]
[334586969,1723283440664,-285.0,0.00019799,2]
[334586970,1723283440674,-540.0,0.00019799,2]
[334586971,1723283440683,-540.0,0.00019799,2]
[334586972,1723283440692,-540.0,0.00019799,2]
[334586973,1723283440702,-151.0,0.00019799,2]
[334586974,1723283440711,-151.0,0.00019799,2]
[334586975,1723283440722,-151.0,0.00019799,2]
[334586976,1723283440733,-151.0,0.00019799,2]
[334586977,1723283440741,-151.0,0.00019799,2]
[334586978,1723283440751,-152.006817,0.00019799,2]
[334586979,1723283440760,-320.897692,0.00019799,2]
[334586980,1723283440770,-320.897692,0.00019799,2]
[334586981,1723283440779,-151.0,0.00019799,2]
[334586982,1723283440789,-680.801386,0.00019799,2]
[334586983,1723283440799,-680.801386,0.00019799,2]
[334586984,1723283440808,-151.0,0.00019799,2]
[334586985,1723283440817,-150.112233,0.000198,2]
[334586986,1723283440827,-150.112233,0.000198,2]
[334586987,1723283440836,-215.33430216,0.00019807,2]
[334586988,1723283440845,-297.12317978,0.0001982,2]
[334586989,1723283440855,-1000.0,0.00019842,2]
[334586990,1723283440864,-4689.0551383,0.00019862,2]
[334586991,1723283440873,-151.0,0.0001989,2]
[334586992,1723283440882,-723.569815,0.0001989,2]
[334586993,1723283440892,-431.346872,0.0001989,2]
[334586994,1723283440902,-723.569815,0.0001989,2]
[334586995,1723283440911,-431.346872,0.0001989,2]
[334586996,1723283440921,-1171.570492,0.0001989,2]
[334586997,1723283440931,-1171.570492,0.0001989,2]
[334586998,1723283440940,-865.121341,0.0001989,2]
[334586999,1723283440951,-865.121341,0.0001989,2]
[334587000,1723283440961,-151.0,0.0001989,2]
[334587001,1723283440971,-151.0,0.0001989,2]
[334587002,1723283440982,-151.0,0.0001989,2]
[334587003,1723283440992,-151.0,0.0001989,2]
[334587004,1723283441001,-151.0,0.0001989,2]
[334587005,1723283441010,-320.897692,0.0001989,2]
[334587006,1723283441020,-320.897692,0.0001989,2]
[334587007,1723283441029,-151.0,0.0001989,2]
[334587008,1723283441038,-680.801386,0.0001989,2]
[334587009,1723283441048,-680.801386,0.0001989,2]
[334587010,1723283441057,-151.0,0.0001989,2]
[334587011,1723283441067,-151.0,0.0001989,2]
[334587012,1723283441077,-469.553891,0.0001989,2]
[334587013,1723283441087,-469.553891,0.0001989,2]
[334587014,1723283441096,-742.339709,0.0001989,2]
[334587015,1723283441106,-742.339709,0.0001989,2]
[334587016,1723283441115,-162.908206,0.0001989,2]
[334587017,1723283441124,-162.908206,0.0001989,2]
[334587018,1723283441135,-2000.0,0.000199,2]
[334587019,1723283441144,-150.112233,0.000199,2]
[334587020,1723283441154,-150.112233,0.000199,2]
[334587021,1723283441164,-328.70707109,0.0001991,2]
[334587022,1723283441174,-1000.0,0.00019923,2]
[334587023,1723283441183,-1000.0,0.0001996,2]
[334587024,1723283441194,-723.569815,0.0001997,2]
[334587025,1723283441204,-431.346872,0.0001997,2]
[334587026,1723283441215,-723.569815,0.0001997,2]
[334587027,1723283441226,-431.346872,0.0001997,2]
[334587028,1723283441237,-1171.570492,0.0001997,2]
[334587029,1723283441247,-1171.570492,0.0001997,2]
[334587030,1723283441257,-865.121341,0.0001997,2]
[334587031,1723283441268,-865.121341,0.0001997,2]
[334587032,1723283441280,-151.0,0.0001997,2]
[334587033,1723283441289,-151.0,0.0001997,2]
[334587034,1723283441299,-151.0,0.0001997,2]
[334587035,1723283441308,-151.0,0.0001997,2]
[334587036,1723283441319,-151.0,0.0001997,2]
[334587037,1723283441330,-320.897692,0.0001997,2]
[334587038,1723283441339,-320.897692,0.0001997,2]
[334587039,1723283441349,-151.0,0.0001997,2]
[334587040,1723283441360,-680.801386,0.0001997,2]
[334587041,1723283441370,-680.801386,0.0001997,2]
[334587042,1723283441380,-151.0,0.0001997,2]
[334587043,1723283441389,-151.0,0.0001997,2]
[334587044,1723283441399,-469.553891,0.0001997,2]
[334587045,1723283441409,-469.553891,0.0001997,2]
[334587046,1723283441418,-742.339709,0.0001997,2]
[334587047,1723283441428,-742.339709,0.0001997,2]
[334587048,1723283441439,-162.908206,0.0001997,2]
[334587049,1723283441586,-162.908206,0.0001997,2]
[334587050,1723283441597,-151.0,0.0001997,2]
[334587051,1723283441606,-205.937812,0.0001997,2]
[334587052,1723283441616,-205.937812,0.0001997,2]
[334587053,1723283441626,-151.0,0.0001997,2]
[334587054,1723283441635,-194.392481,0.0001997,2]
[334587055,1723283441646,-194.392481,0.0001997,2]
[334587056,1723283441655,-204.617322,0.0001997,2]
[334587057,1723283441665,-151.0,0.0001997,2]
[334587058,1723283441675,-151.0,0.0001998,2]
[334587059,1723283441685,-151.0,0.0001998,2]
[334587060,1723283441695,-151.0,0.0001999,2]
[334587061,1723283441704,-151.0,0.0001999,2]
[334587062,1723283441715,-151.0,0.0001999,2]
[334587063,1723283441725,-150.01,0.00019999,2]
[334587064,1723283441737,-2993.33781285,0.00019999,2]
[334587065,1723283441749,-604561.66171617,0.0002,2]
[334587066,1723283441759,-40854.92824377,0.0002,2]
[334587067,1723283441768,-163.67414706,0.0002,2]
[334587068,1723283441777,-171.57583552,0.0002,2]
[334587069,1723283441786,-4184.96471672,0.0002,2]
[334587070,1723283441795,-236.07053144,0.0002,2]
[334587071,1723283441805,-1554.55416322,0.0002,2]
[334587072,1723283441814,-154.83259253,0.0002,2]
[334587073,1723283441823,-1444.82566449,0.0002,2]
[334587074,1723283441833,-24271.73575449,0.0002,2]
[334587075,1723283441842,-150.112233,0.0002,2]
[334587076,1723283441852,-427.3467713,0.0002,2]
[334587077,1723283441862,-156.4788062,0.0002,2]
[334587078,1723283441873,-294.33166663,0.0002,2]
[334587079,1723283441882,-9428.6230642,0.0002,2]
[334587080,1723283441892,-3123.01656173,0.0002,2]
[334587081,1723283441902,-10494.9163161,0.0002,2]
[334587082,1723283441912,-151.0,0.0002,2]
[334587083,1723283441922,-151.0,0.0002,2]
[334587084,1723283441932,-151.0,0.0002,2]
[334587085,1723283441942,-151.0,0.0002,2]
[334587086,1723283441953,-273.806273,0.0002,2]
[334587087,1723283441963,-151.0,0.0002,2]
[334587088,1723283441973,-151.0,0.0002,2]
[334587089,1723283441984,-153.381633,0.0002,2]
[334587090,1723283441994,-723.569815,0.0002,2]
[334587091,1723283442004,-431.346872,0.0002,2]
[334587092,1723283442014,-431.346872,0.0002,2]
[334587093,1723283442025,-723.569815,0.0002,2]
[334587094,1723283442036,-723.569815,0.0002,2]
[334587095,1723283442046,-723.569815,0.0002,2]
[334587096,1723283442056,-431.346872,0.0002,2]
[334587097,1723283442066,-431.346872,0.0002,2]
[334587098,1723283442075,-1171.570492,0.0002,2]
[334587099,1723283442085,-1171.570492,0.0002,2]
[334587100,1723283442094,-1171.570492,0.0002,2]
[334587101,1723283442104,-1171.570492,0.0002,2]
[334587102,1723283442113,-865.121341,0.0002,2]
[334587103,1723283442123,-865.121341,0.0002,2]
[334587104,1723283442132,-865.121341,0.0002,2]
[334587105,1723283442142,-865.121341,0.0002,2]
[334587106,1723283442151,-151.0,0.0002,2]
[334587107,1723283442160,-151.0,0.0002,2]
[334587108,1723283442170,-151.0,0.0002,2]
[334587109,1723283442179,-151.0,0.0002,2]
[334587110,1723283442190,-151.0,0.0002,2]
[334587111,1723283442199,-151.0,0.0002,2]
[334587112,1723283442208,-151.0,0.0002,2]
[334587113,1723283442218,-151.0,0.0002,2]
[334587114,1723283442227,-151.0,0.0002,2]
[334587115,1723283442237,-320.897692,0.0002,2]
[334587116,1723283442247,-320.897692,0.0002,2]
[334587117,1723283442256,-320.897692,0.0002,2]
[334587118,1723283442265,-320.897692,0.0002,2]
[334587119,1723283442277,-202.876898,0.0002,2]
[334587120,1723283442286,-680.801386,0.0002,2]
[334587121,1723283442296,-680.801386,0.0002,2]
[334587122,1723283442306,-680.801386,0.0002,2]
[334587123,1723283442318,-680.801386,0.0002,2]
[334587124,1723283442327,-151.0,0.0002,2]
[334587125,1723283442337,-151.0,0.0002,2]
[334587126,1723283442347,-151.0,0.0002,2]
[334587127,1723283442358,-151.0,0.0002,2]
[334587128,1723283442368,-469.553891,0.0002,2]
[334587129,1723283442378,-469.553891,0.0002,2]
[334587130,1723283442388,-469.553891,0.0002,2]
[334587131,1723283442397,-469.553891,0.0002,2]
[334587132,1723283442407,-742.339709,0.0002,2]
[334587133,1723283442417,-742.339709,0.0002,2]
[334587134,1723283442426,-742.339709,0.0002,2]
[334587135,1723283442436,-742.339709,0.0002,2]
[334587136,1723283442445,-162.908206,0.0002,2]
[334587137,1723283442454,-162.908206,0.0002,2]
[334587138,1723283442464,-162.908206,0.0002,2]
[334587139,1723283442474,-162.908206,0.0002,2]
[334587140,1723283442484,-205.937812,0.0002,2]
[334587141,1723283442494,-205.937812,0.0002,2]
[334587142,1723283442503,-205.937812,0.0002,2]
[334587144,1723283442513,-205.937812,0.0002,2]
[334587145,1723283442523,-151.4401548,0.0002,2]
[334587146,1723283442533,-194.392481,0.0002,2]
[334587147,1723283442544,-194.392481,0.0002,2]
[334587148,1723283442557,-194.392481,0.0002,2]
[334587149,1723283442567,-194.392481,0.0002,2]
[334587150,1723283442577,-155.09721933,0.0002,2]
[334587151,1723283442587,-151.0,0.0002,2]
[334587152,1723283442598,-151.0,0.00020031,2]
[334587153,1723283442608,-151.0,0.00020031,2]
[334587154,1723283442618,-850.74887,0.00020031,2]
[334587155,1723283442627,-744.959196,0.00020031,2]
[334587156,1723283442636,-453.286341,0.00020031,2]
[334587157,1723283442646,-517.814623,0.00020031,2]
[334587158,1723283442656,-168.577137,0.00020031,2]
[334587159,1723283442664,-163.419935,0.00020031,2]
[334587160,1723283442674,-517.814622,0.00020031,2]
[334587161,1723283442683,-453.28634,0.00020031,2]
[334587162,1723283442692,-164.789858,0.00020031,2]
[334587163,1723283442701,-1073.013278,0.00020031,2]
[334587165,1723283442710,-939.25667,0.00020031,2]
[334587167,1723283442720,-151.561584,0.00020089,2]
[334587169,1723283442730,-1264.006356,0.00020089,2]
[334587170,1723283442741,-1506.232925,0.00020089,2]
[334587171,1723283442750,-164.789857,0.00020089,2]
[334587172,1723283442759,-163.419937,0.00020089,2]
[334587173,1723283442768,-186.920159,0.00020089,2]
[334587174,1723283442778,-500.0,0.00020096,2]
[334587175,1723283442787,-150.0,0.00020227,2]
[334587176,1723283442797,-507.0,0.00020227,2]
[334587177,1723283442807,-1412.0,0.00020227,2]
[334587178,1723283442816,-500.0,0.00020233,2]
[334587179,1723283442825,-600.0,0.00020251,2]
[334587181,1723283442835,-346.25605686,0.0002028,2]
[334587182,1723283442844,-850.74887,0.00020282,2]
[334587183,1723283442854,-744.959196,0.00020282,2]
[334587184,1723283442863,-453.286341,0.00020282,2]
[334587185,1723283442873,-517.814623,0.00020282,2]
[334587186,1723283442882,-517.814622,0.00020282,2]
[334587187,1723283442891,-453.28634,0.00020282,2]
[334587188,1723283442901,-1073.013278,0.00020282,2]
[334587189,1723283442910,-939.25667,0.00020282,2]
[334587190,1723283442921,-602.0,0.000203,2]
[334587191,1723283442931,-1264.006356,0.0002034,2]
[334587192,1723283442943,-1506.232925,0.0002034,2]
[334587193,1723283442952,-150.0,0.0002035,2]
[334587194,1723283442963,-151.0,0.00020353,2]
[334587195,1723283442972,-600.0,0.00020462,2]
[334587196,1723283442982,-151.0,0.00020476,2]
[334587197,1723283442991,-1158.28,0.00020506,3]
[334587198,1723283443001,-500.0,0.00020507,2]
[334587199,1723283443010,-579.14,0.00020527,3]
[334587200,1723283443020,-850.74887,0.00020532,2]
[334587201,1723283443029,-744.959196,0.00020532,2]
[334587202,1723283443038,-453.286341,0.00020532,2]
[334587203,1723283443047,-517.814623,0.00020532,2]
[334587204,1723283443057,-517.814622,0.00020532,2]
[334587205,1723283443066,-453.28634,0.00020532,2]
[334587206,1723283443078,-1073.013278,0.00020532,2]
[334587207,1723283443087,-939.25667,0.00020532,2]
[334587208,1723283443097,-500.0,0.00020547,4]
[334587209,1723283443106,-500.0,0.00020547,4]
[334587210,1723283443115,-500.0,0.00020547,4]
[334587211,1723283443124,-500.0,0.00020547,4]
[334587212,1723283443135,-527.10261265,0.00020547,4]
[334587213,1723283443146,-1264.006356,0.00020592,2]
[334587214,1723283443156,-1506.232925,0.00020592,2]
[334587215,1723283443165,-151.0,0.000206,2]
[334587216,1723283443175,-600.0,0.00020673,2]
[334587217,1723283443184,-151.0,0.00020724,2]
[334587218,1723283443193,-151.0,0.00020724,2]
[334587219,1723283443203,-620.57288779,0.00020751,2]
[334587220,1723283443212,-160.0,0.00020773,3]
[334587221,1723283443222,-850.74887,0.00020782,2]
[334587222,1723283443232,-744.959196,0.00020782,2]
[334587223,1723283443242,-453.286341,0.00020782,2]
[334587224,1723283443251,-517.814623,0.00020782,2]
[334587225,1723283443260,-517.814622,0.00020782,2]
[334587226,1723283443269,-453.28634,0.00020782,2]
[334587227,1723283443283,-1073.013278,0.00020782,2]
[334587228,1723283443292,-939.25667,0.00020782,2]
[334587229,1723283443302,-500.0,0.000208,2]
[334587230,1723283443311,-300.0,0.000208,9]
[334587231,1723283443323,-323.75256006,0.0002082,3]
[334587232,1723283443333,-502.85179291,0.00020821,3]
[334587233,1723283443343,-294.08246711,0.00020821,3]
[334587234,1723283443355,-307.00971664,0.00020821,3]
[334587235,1723283443365,-500.0,0.00020821,3]
[334587236,1723283443374,-340.34802559,0.00020821,3]
[334587237,1723283443383,-548.54323977,0.00020821,3]
[334587238,1723283443393,-532.04310518,0.00020821,3]
[334587239,1723283443402,-500.0,0.00020821,3]
[334587240,1723283443412,-500.0,0.00020821,3]
[334587241,1723283443421,-500.0,0.00020821,3]
[334587242,1723283443430,-500.0,0.00020821,3]
[334587243,1723283443439,-501.7545629,0.00020821,3]
[334587244,1723283443449,-500.0,0.00020821,3]
[334587245,1723283443458,-503.22265799,0.00020821,3]
[334587246,1723283443467,-503.05407785,0.00020821,3]
[334587247,1723283443477,-500.0,0.00020821,3]
[334587248,1723283443489,-500.0,0.00020821,3]
[334587249,1723283443498,-500.0,0.00020821,3]
[334587250,1723283443509,-500.0,0.00020821,3]
[334587251,1723283443518,-500.0,0.00020821,3]
[334587252,1723283443527,-500.0,0.00020821,3]
[334587253,1723283443537,-500.0,0.00020821,3]
[334587254,1723283443546,-500.0,0.00020821,3]
[334587255,1723283443556,-500.0,0.00020821,3]
[334587256,1723283443565,-502.45261478,0.00020821,3]
[334587257,1723283443575,-500.0,0.00020821,3]
[334587258,1723283443585,-504.84916624,0.00020821,3]
[334587259,1723283443594,-511.13313057,0.00020821,3]
[334587260,1723283443603,-773.31,0.00020821,3]
[334587261,1723283443612,-500.0,0.00020821,3]
[334587262,1723283443621,-500.0,0.00020821,3]
[334587263,1723283443631,-500.0,0.00020821,3]
[334587264,1723283443640,-528.80353599,0.00020821,3]
[334587266,1723283443649,-500.0,0.00020821,3]
[334587268,1723283443658,-500.0,0.00020821,3]
[334587269,1723283443667,-500.0,0.00020821,3]
[334587270,1723283443676,-505.6142796,0.00020821,3]
[334587271,1723283443685,-500.0,0.00020821,3]
[334587272,1723283443695,-500.0,0.00020821,3]
[334587273,1723283443704,-500.0,0.00020821,3]
[334587274,1723283443713,-500.0,0.00020821,3]
[334587275,1723283443722,-500.0,0.00020821,3]
[334587276,1723283443732,-637.21,0.00020821,3]
[334587277,1723283443747,-500.0,0.00020821,3]
[334587278,1723283443756,-666.44,0.00020821,3]
[334587279,1723283443765,-424.3057506,0.00020821,3]
[334587280,1723283443774,-458.63174153,0.00020821,3]
[334587281,1723283444389,-206.20293556,0.00016532,2]
[334587282,1723283444400,-154.77557542,0.0002,2]
[334587283,1723283444410,-41.36825847,0.00020821,3]
[334587284,1723283444419,-500.0,0.00020821,3]
[334587285,1723283444430,-500.0,0.00020821,3]
[334587286,1723283444440,-500.0,0.00020821,3]
[334587287,1723283444451,-500.0,0.00020821,3]
[334587288,1723283444461,-500.0,0.00020821,3]
[334587289,1723283444471,-500.0,0.00020821,3]
[334587290,1723283444481,-500.0,0.00020821,3]
[334587291,1723283444490,-500.0,0.00020821,3]
[334587292,1723283444499,-500.0,0.00020821,3]
[334587293,1723283444508,-500.0,0.00020821,3]
[334587294,1723283444517,-500.0,0.00020821,3]
[334587295,1723283444527,-500.0,0.00020821,3]
[334587296,1723283444536,-500.0,0.00020821,3]
[334587297,1723283444545,-500.0,0.00020821,3]
[334587298,1723283444556,-500.0,0.00020821,3]
[334587299,1723283444565,-500.0,0.00020821,3]
[334587300,1723283444574,-500.0,0.00020821,3]
[334587301,1723283444583,-500.0,0.00020821,3]
[334587302,1723283444592,-500.0,0.00020821,3]
[334587303,1723283444602,-500.0,0.00020821,3]
[334587304,1723283444612,-589.76175742,0.00020821,3]
[334587305,1723283444621,-500.0,0.00020821,3]
[334587306,1723283444631,-989.17,0.00020821,3]
[334587307,1723283444640,-500.0,0.00020821,3]
[334587308,1723283444650,-500.0,0.00020821,3]
[334587309,1723283444661,-500.0,0.00020821,3]
[334587310,1723283444671,-500.0,0.00020821,3]
[334587311,1723283444681,-500.0,0.00020821,3]
[334587312,1723283444690,-689.69,0.00020821,3]
[334587313,1723283444699,-500.0,0.00020821,3]
[334587314,1723283444709,-509.0994654,0.00020821,3]
[334587315,1723283444718,-513.24,0.00020821,3]
[334587316,1723283444728,-1129.6,0.00020821,3]
[334587317,1723283444739,-500.0,0.00020821,3]
[334587318,1723283444748,-500.0,0.00020821,3]
[334587319,1723283444758,-500.0,0.00020821,3]
[334587320,1723283444768,-500.0,0.00020821,3]
[334587321,1723283444777,-500.0,0.00020821,3]
[334587322,1723283444786,-500.0,0.00020821,3]
[334587323,1723283444799,-500.0,0.00020821,3]
[334587324,1723283444810,-500.0,0.00020821,3]
[334587325,1723283444820,-505.34168104,0.00020821,3]
[334587326,1723283444830,-500.0,0.00020821,3]
[334587327,1723283444840,-500.0,0.00020821,3]
[334587328,1723283444849,-500.0,0.00020821,3]
[334587329,1723283444859,-390.88466791,0.00020821,3]
[334587330,1723283444870,-500.0,0.00020821,3]
[334587331,1723283444880,-500.0,0.00020821,3]
[334587332,1723283444890,-158.23021086,0.00020821,3]
[334587333,1723283444899,-557.23,0.00020821,3]
[334587334,1723283444909,-509.29365035,0.00020821,3]
[334587335,1723283444919,-500.0,0.00020821,3]
[334587336,1723283444929,-500.0,0.00020821,3]
[334587337,1723283444941,-500.0,0.00020821,3]
[334587338,1723283444951,-549.94,0.00020821,3]
[334587339,1723283444962,-518.22,0.00020821,3]
[334587340,1723283444973,-684.99,0.00020821,3]
[334587341,1723283444983,-500.0,0.00020821,3]
[334587342,1723283444993,-500.0,0.00020821,3]
[334587343,1723283445003,-1081.23,0.00020821,3]
[334587344,1723283445012,-500.0,0.00020821,3]
[334587345,1723283445023,-500.0,0.00020821,3]
[334587346,1723283445033,-500.0,0.00020821,3]
[334587347,1723283445043,-500.0,0.00020821,3]
[334587348,1723283445052,-500.0,0.00020821,3]
[334587349,1723283445063,-500.0,0.00020821,3]
[334587350,1723283445072,-1155.57,0.00020821,3]
[334587351,1723283445083,-500.0,0.00020821,3]
[334587352,1723283445092,-500.0,0.00020821,3]
[334587353,1723283445101,-500.0,0.00020821,3]
[334587354,1723283445110,-1157.21,0.00020821,3]
[334587355,1723283445120,-500.0,0.00020821,3]
[334587356,1723283445129,-530.36,0.00020821,3]
[334587357,1723283445138,-500.0,0.00020821,3]
[334587358,1723283445148,-500.0,0.00020821,3]
[334587359,1723283445157,-544.41668987,0.00020821,3]
[334587360,1723283445166,-500.0,0.00020821,3]
[334587361,1723283445176,-506.0902592,0.00020821,3]
[334587362,1723283445185,-500.0,0.00020821,3]
[334587363,1723283445194,-500.0,0.00020821,2]
[334587364,1723283445203,-1239.83,0.00020821,3]
[334587365,1723283445213,-1049.95,0.00020821,3]
[334587366,1723283445222,-500.0,0.00020821,3]
[334587367,1723283445233,-502.89342452,0.00020821,3]
[334587368,1723283445242,-500.0,0.00020821,3]
[334587369,1723283445251,-500.0,0.00020821,3]
[334587370,1723283445260,-584.44,0.00020821,3]
[334587371,1723283445277,-500.0,0.00020821,3]
[334587372,1723283445287,-386.50973709,0.00020821,3]
[334587373,1723283445297,-538.79122491,0.00020821,3]
[334587374,1723283445307,-500.0,0.00020821,3]
[334587375,1723283445317,-267.0025567,0.00020821,3]
[334587376,1723283445326,-500.0,0.00020821,3]
[334587377,1723283445335,-500.0,0.00020821,3]
[334587378,1723283445348,-500.0,0.00020821,3]
[334587379,1723283445357,-500.0,0.00020821,3]
[334587380,1723283445367,-500.0,0.00020821,3]
[334587381,1723283445376,-500.0,0.00020821,3]
[334587382,1723283445385,-511.72647619,0.00020821,3]
[334587383,1723283445395,-500.0,0.00020821,3]
[334587384,1723283445405,-281.84091311,0.00020821,3]
[334587385,1723283445415,-500.0,0.00020821,3]
[334587386,1723283445425,-500.0,0.00020821,3]
[334587387,1723283445436,-500.0,0.00020821,3]
[334587388,1723283445445,-504.40931227,0.00020821,3]
[334587389,1723283445455,-500.0,0.00020821,3]
[334587390,1723283445465,-500.0,0.00020821,3]
[334587392,1723283445475,-500.0,0.00020821,3]
[334587393,1723283445484,-500.0,0.00020821,3]
[334587394,1723283445493,-504.71106364,0.00020821,3]
[334587395,1723283445502,-500.0,0.00020821,3]
[334587396,1723283445511,-500.0,0.00020821,3]
[334587397,1723283445520,-671.1,0.00020821,3]
[334587398,1723283445530,-500.0,0.00020821,3]
[334587399,1723283445539,-500.0,0.00020821,3]
[334587400,1723283445549,-500.0,0.00020821,3]
[334587401,1723283445559,-1068.4,0.00020821,3]
[334587402,1723283445568,-855.13,0.00020821,3]
[334587403,1723283445578,-500.0,0.00020821,3]
[334587404,1723283445587,-500.0,0.00020821,3]
[334587405,1723283445596,-500.0,0.00020821,3]
[334587406,1723283445605,-500.0,0.00020821,3]
[334587407,1723283445614,-570.85,0.00020821,2]
[334587408,1723283445623,-504.54261853,0.00020821,3]
[334587409,1723283445632,-572.97,0.00020821,3]
[334587410,1723283445642,-500.0,0.00020821,3]
[334587411,1723283445651,-500.0,0.00020821,3]
[334587412,1723283445660,-500.0,0.00020821,3]
[334587413,1723283445670,-500.0,0.00020821,3]
[334587415,1723283445679,-500.0,0.00020821,3]
[334587417,1723283445688,-503.71574854,0.00020821,3]
[334587419,1723283445698,-503.67555444,0.00020821,3]
[334587421,1723283445707,-500.0,0.00020821,3]
[334587422,1723283445717,-500.0,0.00020821,3]
[334587423,1723283445727,-500.0,0.00020821,3]
[334587424,1723283445738,-500.0,0.00020821,3]
[334587425,1723283445747,-500.0,0.00020821,3]
[334587426,1723283445757,-500.0,0.00020821,3]
[334587427,1723283445767,-500.0,0.00020821,3]
[334587428,1723283445776,-504.65633265,0.00020821,3]
[334587429,1723283445786,-500.0,0.00020821,3]
[334587430,1723283445795,-971.77,0.00020821,3]
[334587431,1723283445806,-857.64,0.00020821,3]
[334587432,1723283445815,-500.0,0.00020821,3]
[334587433,1723283445824,-540.3996952,0.00020821,3]
[334587434,1723283445834,-645.5874551,0.00020821,3]
[334587435,1723283445844,-500.0,0.00020821,3]
[334587436,1723283445854,-500.0,0.00020821,3]
[334587437,1723283445864,-500.0,0.00020821,3]
[334587438,1723283445873,-500.0,0.00020821,3]
[334587439,1723283445882,-500.0,0.00020821,3]
[334587440,1723283445891,-500.0,0.00020821,3]
[334587441,1723283445900,-683.1,0.00020821,3]
[334587442,1723283445909,-500.0,0.00020821,3]